fUST/lending_fUST_20240317
["ID","MTS","AMOUNT","RATE_DAILY","PERIOD"]
[319246910,1710621047944,-500.0,0.00018627,2]
[319246912,1710621047954,-500.0,0.00018627,2]
[319246914,1710621047962,-500.0,0.00018627,2]
[319246916,1710621047971,-500.0,0.00018627,2]
[319246918,1710621047982,-500.0,0.00018627,2]
[319246920,1710621047991,-500.0,0.00018627,2]
[319246922,1710621048001,-500.0,0.00018627,2]
[319246924,1710621048011,-500.0,0.00018627,2]
[319246927,1710621048021,-500.0,0.00018627,2]
[319246928,1710621048031,-493.69800687,0.00018627,2]
[319246930,1710621048043,-530.19820949,0.00018627,2]
[319246932,1710621048054,-203.41095298,0.00018627,2]
[319246934,1710621048064,-500.0,0.00018627,2]
[319246936,1710621048073,-500.0,0.00018627,2]
[319246938,1710621048083,-500.0,0.00018627,2]
[319246940,1710621048094,-500.0,0.00018627,2]
[319246942,1710621048104,-500.0,0.00018627,2]
[319246944,1710621048114,-500.0,0.00018627,2]
[319246946,1710621048124,-561.46642677,0.00018627,2]
[319246948,1710621048133,-500.0,0.00018627,2]
[319246950,1710621048143,-500.0,0.00018627,2]
[319246952,1710621048152,-500.0,0.00018627,2]
[319246954,1710621048162,-194.84140707,0.00018627,2]
[319246956,1710621048171,-244.10157463,0.00018627,2]
[319246960,1710621048207,-255.89842537,0.00018627,2]
[319246962,1710621048216,-500.0,0.00018627,2]
[319246964,1710621048226,-500.0,0.00018627,2]
[319246966,1710621048235,-339.40541378,0.00018627,2]
[319246968,1710621048245,-537.74,0.00018627,2]
[319246970,1710621048255,-537.74,0.00018627,2]
[319246972,1710621048266,-537.74,0.00018627,2]
[319246974,1710621048276,-537.74,0.00018627,2]
[319246976,1710621048286,-500.0,0.00018627,2]
[319246978,1710621048296,-1387.36,0.00018627,2]
[319246980,1710621048307,-112.6001553,0.00018627,2]
[319246982,1710621048319,-1044.82151806,0.00018627,2]
[319247096,1710622232367,-1315.65251719,0.00017517,2]
[319247099,1710622232379,-567.64879649,0.00017517,2]
[319247102,1710622232389,-669.26722904,0.00017518,2]
[319247502,1710622238389,-4624.16565416,0.00017518,2]
[319247504,1710622238399,-176.847924,0.00017524,2]
[319247506,1710622238408,-176.75413127,0.00018427,2]
[319247508,1710622238418,-5158.00190453,0.00018428,2]
[319247510,1710622238427,-171.17129564,0.0001844,2]
[319247512,1710622238435,-176.75413125,0.00018479,2]
[319247514,1710622238445,-629.72483885,0.00018497,2]
[319247516,1710622238454,-629.72483884,0.00018505,2]
[319247518,1710622238463,-629.72483884,0.00018512,2]
[319247520,1710622238474,-629.72483884,0.0001852,2]
[319247522,1710622238483,-629.72483884,0.00018527,2]
[319247524,1710622238493,-1367.68076494,0.00018527,2]
[319248571,1710622247243,-10889.97040266,0.00018527,2]
[319248573,1710622247254,-1000.0,0.00018527,2]
[319248575,1710622247263,-500.0,0.00018586,2]
[319248578,1710622247273,-500.0,0.00018595,2]
[319248581,1710622247282,-500.0,0.00018596,2]
[319248584,1710622247291,-500.0,0.00018597,2]
[319248586,1710622247302,-500.0,0.00018597,2]
[319248588,1710622247311,-500.0,0.00018597,2]
[319248590,1710622247320,-500.0,0.00018597,2]
[319248592,1710622247329,-500.0,0.00018597,2]
[319248594,1710622247338,-500.0,0.00018597,2]
[319248596,1710622247347,-500.0,0.00018597,2]
[319248598,1710622247356,-500.0,0.00018597,2]
[319248600,1710622247365,-500.0,0.00018597,2]
[319248602,1710622247374,-500.0,0.00018597,2]
[319248604,1710622247383,-551.74719403,0.00018597,2]
[319248606,1710622247393,-500.0,0.00018597,2]
[319248608,1710622247402,-500.0,0.00018597,2]
[319248610,1710622247411,-500.70956521,0.00018597,2]
[319248612,1710622247420,-500.0,0.00018597,2]
[319248614,1710622247430,-303.62768722,0.00018597,2]
[319248616,1710622247439,-500.0,0.00018597,2]
[319248618,1710622247448,-500.0,0.00018597,2]
[319248620,1710622247457,-500.0,0.00018597,2]
[319248622,1710622247466,-500.0,0.00018597,2]
[319248624,1710622247475,-500.69313384,0.00018597,2]
[319248626,1710622247487,-339.5883696,0.00018597,2]
[319248628,1710622247497,-500.0,0.00018597,2]
[319248630,1710622247506,-500.0,0.00018597,2]
[319248632,1710622247515,-564.25727124,0.00018597,2]
[319248634,1710622247524,-289.51,0.00018597,2]
[319248636,1710622247534,-287.94467626,0.00018597,2]
[319248638,1710622247544,-500.0,0.00018598,2]
[319248640,1710622247553,-500.0,0.00018598,2]
[319248642,1710622247563,-1002.8,0.00018598,2]
[319248644,1710622247572,-1002.8,0.00018598,2]
[319248646,1710622247581,-1002.8,0.00018598,2]
[319248648,1710622247590,-1002.8,0.00018598,2]
[319248650,1710622247599,-500.0,0.00018598,2]
[319248652,1710622247609,-1002.8,0.00018598,2]
[319248654,1710622247618,-500.0,0.00018598,2]
[319248656,1710622247627,-1002.8,0.00018598,2]
[319248658,1710622247636,-500.0,0.00018598,2]
[319248659,1710622247645,-505.7,0.00018598,2]
[319248661,1710622247654,-500.0,0.00018599,2]
[319248663,1710622247663,-500.0,0.00018599,2]
[319248665,1710622247673,-500.0,0.00018599,2]
[319248667,1710622247682,-1002.8,0.00018599,2]
[319248669,1710622247691,-1002.8,0.00018599,2]
[319248671,1710622247701,-500.0,0.00018625,2]
[319248673,1710622247710,-500.0,0.00018625,2]
[319248675,1710622247718,-502.38347792,0.00018625,2]
[319248677,1710622247728,-1002.8,0.00018625,2]
[319248679,1710622247739,-1002.8,0.00018625,2]
[319248681,1710622247748,-1002.8,0.00018625,2]
[319248683,1710622247758,-1002.8,0.00018626,2]
[319248685,1710622247767,-1002.8,0.00018626,2]
[319248687,1710622247776,-1002.8,0.00018626,2]
[319248689,1710622247785,-1002.8,0.00018626,2]
[319248691,1710622247794,-1002.8,0.00018626,2]
[319248693,1710622247804,-1002.8,0.00018626,2]
[319248695,1710622247813,-229.93832664,0.00018627,2]
[319248697,1710622247824,-1387.36,0.00018627,2]
[319248699,1710622247833,-1387.36,0.00018627,2]
[319248701,1710622247842,-500.0,0.00018627,2]
[319248703,1710622247851,-500.0,0.00018627,2]
[319248705,1710622247863,-500.0,0.00018627,2]
[319248707,1710622247872,-500.0,0.00018627,2]
[319248709,1710622247881,-500.0,0.00018627,2]
[319248711,1710622247891,-500.0,0.00018627,2]
[319248713,1710622247900,-500.0,0.00018627,2]
[319248715,1710622247909,-162.01325427,0.00018627,2]
[319248717,1710622247918,-500.0,0.00018627,2]
[319248719,1710622247928,-500.0,0.00018627,2]
[319248721,1710622247936,-500.0,0.00018627,2]
[319248723,1710622247946,-500.0,0.00018627,2]
[319248725,1710622247955,-500.0,0.00018627,2]
[319248727,1710622247965,-45833.33,0.00018627,2]
[319248728,1710622247975,-32096.53707684,0.00018627,2]
[319248914,1710623438544,-304.49442129,0.00018416,2]
[319248916,1710623438553,-316.60819383,0.00018426,2]
[319248918,1710623438565,-25.42007845,0.00018426,2]
[319248920,1710623438575,-176.75413125,0.00018426,2]
[319248922,1710623438584,-4293.94641927,0.00018508,2]
[319249135,1710623440771,-1883.30131368,0.00018415,2]
[319249137,1710623440781,-4797.79868632,0.00018508,2]
[319249444,1710623443738,-13415.7,0.00018508,2]
[319249482,1710623446902,-218958.83150221,0.00018508,2]
[319249489,1710623942892,15147.2855085,0.00017226,2]
[319249561,1710624632720,-605.01801761,0.0001758,2]
[319249562,1710624632731,-1278.28329607,0.0001758,2]
[319249563,1710624632741,-922.33448574,0.00017581,2]
[319249564,1710624632751,-202.51838,0.00018131,2]
[319249565,1710624632759,-220.118406,0.00018131,2]
[319249566,1710624632768,-182.632306,0.00018131,2]
[319249567,1710624632777,-172.880331,0.00018131,2]
[319249570,1710624632786,-294.08370709,0.00018136,2]
[319249573,1710624632795,-171.5757617,0.00018407,2]
[319249575,1710624632805,-745.06110892,0.00018408,2]
[319249577,1710624632814,-300.0,0.00018506,2]
[319249578,1710624632823,-588.65,0.00018507,2]
[319249579,1710624632832,-588.65,0.00018507,2]
[319249580,1710624632841,-588.65,0.00018507,2]
[319249581,1710624632850,-588.65,0.00018507,2]
[319249583,1710624632861,-588.65,0.00018507,2]
[319249584,1710624632870,-588.65,0.00018507,2]
[319249586,1710624632880,-588.65,0.00018507,2]
[319249588,1710624632889,-588.65,0.00018507,2]
[319249589,1710624632898,-588.65,0.00018507,2]
[319249591,1710624632907,-588.65,0.00018507,2]
[319249592,1710624632916,-588.65,0.00018507,2]
[319249593,1710624632925,-588.65,0.00018507,2]
[319249594,1710624632934,-588.65,0.00018507,2]
[319249595,1710624632943,-588.65,0.00018507,2]
[319249596,1710624632953,-588.65,0.00018507,2]
[319249597,1710624632961,-588.65,0.00018507,2]
[319249598,1710624632971,-588.65,0.00018507,2]
[319249599,1710624632980,-588.65,0.00018507,2]
[319249600,1710624632991,-588.65,0.00018507,2]
[319249601,1710624633000,-588.65,0.00018507,2]
[319249602,1710624633009,-588.65,0.00018507,2]
[319249603,1710624633021,-588.65,0.00018507,2]
[319249604,1710624633030,-588.65,0.00018507,2]
[319249605,1710624633039,-588.85413529,0.00018507,2]
[319249606,1710624633048,-429.85173152,0.00018507,2]
[319249667,1710624638943,-70.14826848,0.00018507,2]
[319249669,1710624638952,-500.0,0.00018507,2]
[319249671,1710624638962,-505.77958517,0.00018507,2]
[319249673,1710624638971,-473.01686173,0.00018507,2]
[319249675,1710624638983,-15252.93343551,0.00018508,2]
[319249677,1710624638995,-13423.74463949,0.00018508,2]
[319249680,1710624639006,-4477.57873507,0.00018508,2]
[319249682,1710624639019,-362.075,0.00018508,2]
[319249884,1710624640814,-852.50000001,0.00018508,2]
[319249887,1710624640828,-4845.22716721,0.00018508,2]
[319249889,1710624640839,-37855.42741923,0.00018508,2]
[319249891,1710624640851,-6650.0,0.00018508,2]
[319250588,1710624648079,-1290.92244866,0.00018323,2]
[319250590,1710624648091,-332057.67321676,0.00018508,2]
[319250592,1710624648104,-8909.9720715,0.00018508,2]
[319250597,1710624648146,-645614.85766694,0.00018508,2]
[319250599,1710624648157,-4867.56267875,0.00018508,2]
[319250652,1710624649994,-1883.30131368,0.00018507,2]
[319250653,1710624650006,-3480.65868632,0.00018508,2]
[319250655,1710624650017,-42000.0,0.00018508,2]
[319250689,1710625084785,188.11098368,0.00017438,2]
[319250691,1710625309737,7601.980586,0.0001652,2]
[319250694,1710625526300,1475.78282209,0.00017499,2]
[319250695,1710625528745,304.49442129,0.00017499,2]
[319250696,1710625532124,155.01085076,0.00017499,2]
[319250697,1710625536121,184.76844647,0.00017499,2]
[319250698,1710625543422,1081.84484016,0.00017499,2]
[319250699,1710625543880,155.01085076,0.00017499,2]
[319250700,1710625554045,15272.02320787,0.00017499,2]
[319250701,1710625561254,1883.30131368,0.00017499,2]
[319250703,1710625628455,210.78974086,0.00017499,2]
[319250882,1710625838127,-2600.35966452,0.000175,2]
[319250884,1710625838138,-300.0,0.00017501,2]
[319250886,1710625838149,-4226.64033548,0.00017502,2]
[319251216,1710625841185,-1082.90543647,0.00017502,2]
[319251533,1710625844562,-42391.71809597,0.00017502,2]
[319251535,1710625844571,-2230.50203223,0.00017532,2]
[319251538,1710625844589,-610.26753908,0.00017532,2]
[319251540,1710625844601,-369.76423489,0.00017534,2]
[319251542,1710625844610,-2104.6364386,0.00017535,2]
[319251544,1710625844620,-502.911632,0.00018407,2]
[319251546,1710625844629,-494.91909945,0.00018407,2]
[319251548,1710625844640,-361.15332449,0.00018407,2]
[319251550,1710625844650,-500.0,0.00018407,2]
[319251552,1710625844659,-500.0,0.00018407,2]
[319251554,1710625844669,-500.0,0.00018407,2]
[319251556,1710625844679,-500.0,0.00018407,2]
[319251558,1710625844689,-500.0,0.00018407,2]
[319251560,1710625844698,-500.0,0.00018407,2]
[319251562,1710625844708,-500.0,0.00018407,2]
[319251564,1710625844718,-500.0,0.00018407,2]
[319251566,1710625844727,-231.83,0.00018407,2]
[319251568,1710625844738,-178.08956204,0.00018407,2]
[319251570,1710625844748,-500.0,0.00018407,2]
[319251572,1710625844757,-500.34137207,0.00018407,2]
[319251574,1710625844767,-501.6448559,0.00018407,2]
[319251576,1710625844777,-500.0,0.00018407,2]
[319251578,1710625844787,-446.73264672,0.00018407,2]
[319251580,1710625844796,-500.0,0.00018407,2]
[319251582,1710625844805,-500.0,0.00018407,2]
[319251584,1710625844815,-500.0,0.00018407,2]
[319251586,1710625844825,-500.0,0.00018407,2]
[319251588,1710625844834,-500.0,0.00018407,2]
[319251590,1710625844844,-500.0,0.00018407,2]
[319251592,1710625844855,-500.0,0.00018407,2]
[319251594,1710625844865,-1000.0,0.00018407,2]
[319251596,1710625844875,-30159.88562931,0.00018408,2]
[319251599,1710625844890,-319.96060599,0.00018408,2]
[319251763,1710625846131,-339.49180477,0.00018136,2]
[319254028,1710625959176,1303.7493865,0.00017465,2]
[319254029,1710626162054,3362.67904977,0.00017465,2]
[319254030,1710626279649,155.30837612,0.00017465,2]
[319254031,1710626285707,1730.0426402,0.00017457,2]
[319254092,1710627032078,-1883.30131368,0.00018135,2]
[319254093,1710627032088,-365.64047324,0.00018136,2]
[319254094,1710627032099,-171.17129564,0.00018322,2]
[319254095,1710627032108,-275.24942856,0.00018407,2]
[319254096,1710627032118,-500.0,0.00018407,2]
[319254097,1710627032126,-370.80290693,0.00018407,2]
[319254098,1710627032136,-500.0,0.00018407,2]
[319254099,1710627032145,-500.0,0.00018407,2]
[319254100,1710627032154,-500.0,0.00018407,2]
[319254101,1710627032163,-500.0,0.00018407,2]
[319254102,1710627032172,-500.0,0.00018407,2]
[319254103,1710627032180,-500.0,0.00018407,2]
[319254104,1710627032189,-500.0,0.00018407,2]
[319254105,1710627032199,-500.0,0.00018407,2]
[319254106,1710627032208,-425.28297113,0.00018407,2]
[319254107,1710627032217,-500.0,0.00018407,2]
[319254108,1710627032227,-500.0,0.00018407,2]
[319254109,1710627032236,-60.09575001,0.00018407,2]
[319254110,1710627032248,-439.90424999,0.00018407,2]
[319254111,1710627032257,-500.0,0.00018407,2]
[319254113,1710627032266,-442.66123111,0.00018407,2]
[319254115,1710627032275,-500.0,0.00018407,2]
[319254117,1710627032284,-500.0,0.00018407,2]
[319254119,1710627032293,-500.0,0.00018407,2]
[319254121,1710627032302,-214.20737025,0.00018407,2]
[319254123,1710627032313,-206.64062001,0.00018407,2]
[319254125,1710627032322,-500.0,0.00018407,2]
[319254127,1710627032331,-513.43762906,0.00018407,2]
[319254129,1710627032340,-500.0,0.00018407,2]
[319254131,1710627032350,-500.0,0.00018407,2]
[319254133,1710627032360,-641.03856471,0.00018407,2]
[319254135,1710627032368,-220.98977825,0.00018407,2]
[319254137,1710627032377,-500.0,0.00018407,2]
[319254139,1710627032386,-500.0,0.00018407,2]
[319254141,1710627032395,-500.0,0.00018407,2]
[319254143,1710627032405,-500.0,0.00018407,2]
[319254145,1710627032415,-500.0,0.00018407,2]
[319254147,1710627032424,-500.0,0.00018407,2]
[319254149,1710627032434,-500.42636017,0.00018407,2]
[319254151,1710627032442,-501.84157759,0.00018407,2]
[319254153,1710627032451,-56204.04671258,0.00018408,2]
[319254155,1710627032460,-1000.0,0.00018408,2]
[319254157,1710627032469,-500.0,0.00018505,2]
[319254158,1710627032478,-500.0,0.00018505,2]
[319254161,1710627032488,-500.0,0.00018505,2]
[319254163,1710627032497,-500.0,0.00018505,2]
[319254165,1710627032506,-500.0,0.00018505,2]
[319254166,1710627032515,-326.89,0.00018505,2]
[319254168,1710627032524,-500.0,0.00018505,2]
[319254171,1710627032533,-500.0,0.00018505,2]
[319254172,1710627032543,-500.0,0.00018505,2]
[319254175,1710627032552,-500.0,0.00018505,2]
[319254177,1710627032562,-500.0,0.00018505,2]
[319254179,1710627032570,-500.0,0.00018505,2]
[319254181,1710627032579,-595.30383915,0.00018505,2]
[319254182,1710627032589,-593.73479584,0.00018506,2]
[319254185,1710627032601,-500.0,0.00018506,2]
[319254187,1710627032610,-500.0,0.00018506,2]
[319254189,1710627032618,-500.0,0.00018506,2]
[319254191,1710627032627,-500.0,0.00018506,2]
[319254193,1710627032636,-500.0,0.00018506,2]
[319254195,1710627032645,-500.0,0.00018506,2]
[319254197,1710627032655,-500.0,0.00018506,2]
[319254199,1710627032665,-500.0,0.00018506,2]
[319254201,1710627032674,-500.0,0.00018506,2]
[319254203,1710627032684,-500.0,0.00018506,2]
[319254205,1710627032694,-500.0,0.00018506,2]
[319254207,1710627032704,-159.91758974,0.00018506,2]
[319254209,1710627032714,-775.41,0.00018506,2]
[319254211,1710627032726,-500.0,0.00018506,2]
[319254213,1710627032735,-500.0,0.00018506,2]
[319254215,1710627032745,-500.0,0.00018506,2]
[319254217,1710627032755,-231.83,0.00018506,2]
[319254219,1710627032765,-262.48262514,0.00018506,7]
[319254221,1710627032775,-155.03255684,0.00018506,2]
[319254223,1710627032785,-204.89534336,0.00018506,2]
[319254225,1710627032795,-1382.95621485,0.00018506,2]
[319254227,1710627032804,-551.16066515,0.00018506,2]
[319254229,1710627032813,-3222.73716798,0.00018506,2]
[319254231,1710627032823,-381.78579349,0.00018506,2]
[319254233,1710627032832,-1149.46415486,0.00018506,2]
[319254235,1710627032841,-389.64546422,0.00018506,2]
[319254237,1710627032854,-184.48925657,0.00018506,2]
[319254239,1710627032864,-1079.68111652,0.00018506,2]
[319254241,1710627032873,-169.28728127,0.00018506,2]
[319254243,1710627032883,-933.80097195,0.00018506,2]
[319254245,1710627032892,-251.67270412,0.00018506,2]
[319254247,1710627032901,-750.10691281,0.00018506,2]
[319254249,1710627032910,-27384.09238536,0.00018506,2]
[319254251,1710627032919,-500.0,0.00018507,2]
[319254253,1710627032928,-500.0,0.00018507,2]
[319254255,1710627032937,-499.9601553,0.00018507,2]
[319254257,1710627032946,-500.0,0.00018507,2]
[319254259,1710627032955,-500.0,0.00018507,2]
[319254261,1710627032964,-500.0,0.00018507,2]
[319254263,1710627032973,-500.0,0.00018507,2]
[319254265,1710627032981,-500.0,0.00018507,2]
[319254267,1710627032990,-500.0,0.00018507,2]
[319254269,1710627033001,-500.0,0.00018507,2]
[319254271,1710627033010,-500.0,0.00018507,2]
[319254273,1710627033018,-500.0,0.00018507,2]
[319254275,1710627033028,-500.0,0.00018507,2]
[319254277,1710627033037,-500.0,0.00018507,2]
[319254279,1710627033046,-500.0,0.00018507,2]
[319254281,1710627033055,-500.0,0.00018507,2]
[319254283,1710627033065,-500.0,0.00018507,2]
[319254285,1710627033074,-500.0,0.00018507,2]
[319254287,1710627033083,-500.0,0.00018507,2]
[319254289,1710627033092,-500.0,0.00018507,2]
[319254291,1710627033103,-621.87021432,0.00018507,2]
[319254293,1710627033113,-224.75057144,0.00018507,2]
[319254295,1710627033121,-500.0,0.00018507,2]
[319254297,1710627033130,-500.0,0.00018507,2]
[319254299,1710627033140,-500.0,0.00018507,2]
[319254300,1710627033149,-500.0,0.00018507,2]
[319254302,1710627033159,-500.0,0.00018507,2]
[319254305,1710627033168,-552.39,0.00018507,2]
[319254306,1710627033177,-552.39,0.00018507,2]
[319254308,1710627033186,-500.0,0.00018507,2]
[319254310,1710627033195,-552.39,0.00018507,2]
[319254312,1710627033204,-552.39,0.00018507,2]
[319254314,1710627033214,-552.39,0.00018507,2]
[319254317,1710627033223,-528.49904109,0.00018507,2]
[319254318,1710627033232,-552.39,0.00018507,2]
[319254321,1710627033242,-552.39,0.00018507,2]
[319254322,1710627033251,-552.39,0.00018507,2]
[319254324,1710627033260,-552.39,0.00018507,2]
[319254326,1710627033269,-552.39,0.00018507,2]
[319254328,1710627033278,-552.39,0.00018507,2]
[319254330,1710627033287,-552.39,0.00018507,2]
[319254332,1710627033296,-552.39,0.00018507,2]
[319254334,1710627033305,-552.39,0.00018507,2]
[319254336,1710627033314,-552.39,0.00018507,2]
[319254338,1710627033322,-552.39,0.00018507,2]
[319254340,1710627033331,-552.39,0.00018507,2]
[319254342,1710627033341,-552.39,0.00018507,2]
[319254344,1710627033351,-552.39,0.00018507,2]
[319254346,1710627033360,-552.39,0.00018507,2]
[319254348,1710627033369,-552.39,0.00018507,2]
[319254350,1710627033378,-552.39,0.00018507,2]
[319254352,1710627033386,-552.39,0.00018507,2]
[319254354,1710627033396,-552.391845,0.00018507,2]
[319254364,1710627033497,-500.0,0.00018507,2]
[319254366,1710627033507,-500.0,0.00018507,2]
[319254368,1710627033516,-231.83,0.00018507,2]
[319254370,1710627033526,-500.0,0.00018507,2]
[319254371,1710627033535,-500.0,0.00018507,2]
[319254372,1710627033544,-500.0,0.00018507,2]
[319254373,1710627033554,-500.0,0.00018507,2]
[319254374,1710627033564,-500.0,0.00018507,2]
[319254375,1710627033573,-457.39,0.00018507,2]
[319254376,1710627033582,-500.0,0.00018507,2]
[319254377,1710627033591,-442.88019089,0.00018507,2]
[319254378,1710627033603,-500.0,0.00018507,2]
[319254379,1710627033612,-381.75834267,0.00018507,2]
[319254380,1710627033621,-500.0,0.00018507,2]
[319254381,1710627033631,-500.0,0.00018507,2]
[319254382,1710627033641,-500.0,0.00018507,2]
[319254383,1710627033650,-500.0,0.00018507,2]
[319254384,1710627033659,-500.0,0.00018507,2]
[319254385,1710627033669,-500.0,0.00018507,2]
[319254386,1710627033678,-500.0,0.00018507,2]
[319254387,1710627033688,-500.0,0.00018507,2]
[319254388,1710627033697,-500.0,0.00018507,2]
[319254389,1710627033707,-500.0,0.00018507,2]
[319254390,1710627033717,-500.0,0.00018507,2]
[319254391,1710627033728,-500.0,0.00018507,2]
[319254392,1710627033737,-500.0,0.00018507,2]
[319254393,1710627033747,-500.0,0.00018507,2]
[319254394,1710627033757,-500.0,0.00018507,2]
[319254395,1710627033767,-500.0,0.00018507,2]
[319254396,1710627033776,-369.7487832,0.00018507,2]
[319254397,1710627033786,-500.0,0.00018507,2]
[319254398,1710627033797,-500.0,0.00018507,2]
[319254399,1710627033806,-457.39,0.00018507,2]
[319254400,1710627033816,-500.0,0.00018507,2]
[319254401,1710627033825,-367.94,0.00018507,2]
[319254402,1710627033834,-500.0,0.00018507,2]
[319254403,1710627033843,-500.0,0.00018507,2]
[319254404,1710627033855,-500.0,0.00018507,2]
[319254405,1710627033866,-500.0,0.00018507,2]
[319254406,1710627033876,-500.0,0.00018507,2]
[319254407,1710627033886,-500.0,0.00018507,2]
[319254408,1710627033895,-500.0,0.00018507,2]
[319254409,1710627033905,-500.0,0.00018507,2]
[319254410,1710627033914,-500.0,0.00018507,2]
[319254411,1710627033924,-399.24,0.00018507,2]
[319254412,1710627033933,-500.0,0.00018507,2]
[319254413,1710627033942,-493.87,0.00018507,2]
[319254414,1710627033952,-500.0,0.00018507,2]
[319254415,1710627033960,-500.0,0.00018507,2]
[319254416,1710627033970,-231.83,0.00018507,2]
[319254417,1710627033979,-395.75728308,0.00018508,2]
[319254418,1710627033988,-75345.03266224,0.00018508,2]
[319254419,1710627034001,-13200.0,0.00018508,2]
[319254458,1710627038214,-20000.0,0.00018508,2]
[319254460,1710627038226,-8392.92650393,0.00018508,2]
[319254462,1710627038237,-8892.31698487,0.00018508,2]
[319254593,1710627041765,-6600.0,0.00018508,2]
[319254594,1710627041777,-18175.49924973,0.00018508,2]
[319254595,1710627041788,-5292.46,0.00018508,2]
[319254596,1710627041827,-1060.49999998,0.00018508,2]
[319254646,1710627043206,-913200.32939325,0.00018508,2]
[319255059,1710627047680,-152239.07461323,0.00018508,2]
[319255061,1710627047690,-395.75728305,0.0001851,2]
[319255063,1710627047699,-395.75728305,0.00018513,2]
[319255065,1710627047708,-395.75728305,0.00018515,2]
[319255067,1710627047718,-395.75728305,0.00018518,2]
[319255069,1710627047728,-395.75728305,0.0001852,2]
[319255070,1710627047738,-395.75728305,0.00018523,2]
[319255072,1710627047747,-395.75728305,0.00018525,2]
[319255074,1710627047757,-395.75728305,0.00018528,2]
[319255076,1710627047766,-395.75728305,0.0001853,2]
[319255078,1710627047775,-207.87138129,0.00018608,2]
[319255080,1710627047784,-500.0,0.00018626,2]
[319255082,1710627047795,-500.0,0.00018626,2]
[319255084,1710627047805,-500.0,0.00018626,2]
[319255086,1710627047815,-356.32714626,0.00018626,2]
[319255088,1710627047824,-500.0,0.00018626,2]
[319255090,1710627047833,-512.15362293,0.00018626,2]
[319255092,1710627047842,-500.0,0.00018626,2]
[319255094,1710627047851,-501.47009959,0.00018626,2]
[319255096,1710627047862,-555.13,0.00018626,2]
[319255098,1710627047871,-555.13,0.00018626,2]
[319255100,1710627047881,-555.13,0.00018626,2]
[319255102,1710627047890,-555.13,0.00018626,2]
[319255104,1710627047899,-555.13,0.00018626,2]
[319255106,1710627047907,-555.13,0.00018626,2]
[319255108,1710627047916,-500.0,0.00018626,2]
[319255110,1710627047924,-555.13,0.00018626,2]
[319255112,1710627047933,-589.029424,0.00018626,2]
[319255114,1710627047942,-376.10048652,0.00018626,2]
[319255116,1710627047952,-13736.79292316,0.00018627,2]
[319255117,1710627047961,-155.27492534,0.00018627,2]
[319255118,1710627047970,-155.29776023,0.00018627,2]
[319255119,1710627047979,-383.18367075,0.00018627,2]
[319255120,1710627047988,-1231.83,0.00018627,2]
[319255121,1710627047997,-1457.39,0.00018627,2]
[319255122,1710627048006,-1231.83,0.00018627,2]
[319255123,1710627048015,-1231.83,0.00018627,2]
[319255124,1710627048024,-1457.39,0.00018627,2]
[319255125,1710627048034,-1231.83,0.00018627,2]
[319255126,1710627048043,-1457.39,0.00018627,2]
[319255127,1710627048051,-1231.83,0.00018627,2]
[319255128,1710627048060,-1457.39,0.00018627,2]
[319255129,1710627048070,-1231.90489718,0.00018627,2]
[319255130,1710627048078,-1457.39,0.00018627,2]
[319255131,1710627048088,-1457.42,0.00018627,2]
[319255132,1710627048097,-264.46097427,0.00018627,2]
[319255133,1710627048106,-884.03929032,0.00018627,2]
[319255134,1710627048118,-188.26246721,0.00018627,2]